bitfinex-derivatives/quotes_ETHF0:USTF0_20230403
["timestamp","ask_amount","ask_price","bid_price","bid_amount"]
[1680528797465,1.44703009,1806.1,1805.8,3.2078]
[1680528797666,2.44703009,1806.1,1805.8,3.2078]
[1680528797864,1.44703009,1806.1,1805.8,3.2078]
[1680528798157,0.57832288,1806.0,1805.8,3.2078]
[1680528798365,1.44703009,1806.1,1805.8,3.2078]
[1680528799272,0.57832288,1806.1,1805.8,3.2078]
[1680528801464,1.57832288,1806.1,1805.8,3.2078]
[1680528801673,1.57832288,1806.1,1805.6,2.216]
[1680528801674,0.57832288,1806.1,1805.6,5.4238]
[1680528802170,1.107,1806.0,1805.6,4.3148]
[1680528802672,1.107,1806.0,1805.7,1.0]
[1680528803176,1.107,1806.0,1805.8,3.2078]
[1680528803371,1.107,1806.0,1805.9,1.0]
[1680528803673,1.107,1806.0,1805.8,3.2078]
[1680528804174,2.24901382,1806.2,1805.8,3.2078]
[1680528804376,1.68532288,1806.2,1806.0,3.2078]
[1680528805675,1.107,1806.2,1806.0,3.2078]
[1680528806773,0.54625262,1806.3,1806.0,3.2078]
[1680528806975,3.3405472,1806.4,1806.0,3.2078]
[1680528807169,2.76222432,1806.4,1806.2,3.2078]
[1680528807364,0.57832288,1806.5,1806.2,3.2078]
[1680528807571,2.27891813,1806.6,1806.3,2.101]
[1680528807869,0.57832288,1806.6,1806.3,2.101]
[1680528808070,2.26687683,1806.7,1806.4,3.2078]
[1680528808272,0.57832288,1806.7,1806.4,3.2078]
[1680528809277,3.12135137,1806.8,1806.4,3.2078]
[1680528809580,1.67432128,1806.8,1806.4,3.2078]
[1680528810571,1.67432128,1806.8,1806.5,1.20184398]
[1680528810976,1.67432128,1806.8,1806.5,0.20184398]
[1680528811883,0.56732128,1806.8,1806.6,3.2078]
[1680528812080,0.57832288,1807.0,1806.6,4.3148]
[1680528812780,3.78612288,1807.0,1806.6,4.3148]
[1680528813385,3.2078,1807.0,1806.6,4.3148]
[1680528813588,0.57832288,1807.1,1806.7,1.106]
[1680528813885,5.9913382,1807.2,1806.8,3.2078]
[1680528814077,4.3148,1807.2,1806.8,3.2078]
[1680528814276,1.107,1807.2,1806.8,3.2078]
[1680528815886,1.66049101,1807.2,1806.8,3.2078]
[1680528816384,4.86829101,1807.2,1806.7,1.106]
[1680528816587,5.86829101,1807.2,1806.7,1.106]
[1680528816985,4.86829101,1807.2,1806.7,1.106]
[1680528817289,3.2078,1807.4,1807.0,1.103]
[1680528817480,5.37501204,1807.4,1807.0,1.103]
[1680528817681,5.37501204,1807.4,1807.0,4.3108]
[1680528818388,1.107,1807.3,1807.0,3.2078]
[1680528818589,2.107,1807.3,1807.0,3.2078]
[1680528818785,1.107,1807.3,1807.0,3.2078]
[1680528822191,1.107,1807.6,1807.2,4.3138]
[1680528822487,2.68725246,1807.7,1807.4,1.101]
[1680528822691,1.107,1807.9,1807.4,1.101]
[1680528823077,1.107,1807.9,1807.5,3.2078]
[1680528823283,1.64725759,1807.9,1807.5,4.3138]
[1680528823481,4.86422305,1808.0,1807.5,4.3138]
[1680528824182,6.56327045,1808.0,1807.5,4.3138]
[1680528824581,1.0,1807.9,1807.6,0.63572839]
[1680528824979,6.56327045,1808.0,1807.6,0.63572839]
[1680528825190,1.103,1807.8,1807.6,0.63572839]
[1680528825487,1.103,1807.8,1807.3,4.3148]
[1680528826695,1.103,1807.8,1807.4,1.0]
[1680528827094,4.3108,1807.8,1807.3,4.3148]
[1680528828792,5.46027045,1808.0,1807.6,1.101]
[1680528828993,2.25247045,1808.0,1807.6,1.101]
[1680528829194,1.107,1808.1,1807.6,1.101]
[1680528829391,2.75441628,1808.1,1807.6,1.101]
[1680528829701,1.107,1808.1,1807.6,1.101]
[1680528830494,4.3148,1808.2,1807.8,1.103]
[1680528830689,4.87143032,1808.2,1807.8,1.103]
[1680528830991,1.66363032,1808.2,1807.9,3.2078]
[1680528831494,1.107,1808.2,1807.9,3.2078]
[1680528831796,1.107,1808.2,1807.8,4.3108]
[1680528832000,3.74739769,1808.4,1808.0,1.106]
[1680528832588,3.2078,1808.2,1807.8,1.103]
[1680528832795,1.0,1808.1,1807.8,1.103]
[1680528832989,1.103,1807.9,1807.6,7.9607]
[1680528833191,1.103,1807.9,1807.6,3.2078]
[1680528834390,2.103,1807.9,1807.6,3.2078]
[1680528834593,1.103,1807.9,1807.6,3.2078]
[1680528834994,1.103,1807.9,1807.4,1.107]
[1680528835892,1.103,1807.9,1807.5,3.2078]
[1680528837498,1.103,1807.9,1807.5,4.2078]
[1680528837697,1.103,1807.9,1807.5,3.2078]
[1680528839099,2.103,1807.9,1807.5,3.2078]
[1680528839691,2.103,1807.9,1807.6,0.85183101]
[1680528840203,1.103,1807.9,1807.6,0.85183101]
[1680528842001,4.86049571,1808.0,1807.6,0.85183101]
[1680528842392,4.86049571,1808.0,1807.6,1.85183101]
[1680528842604,4.3148,1808.0,1807.6,0.85183101]
[1680528843403,1.57832288,1808.3,1807.9,1.107]
[1680528843404,3.78612288,1808.3,1807.9,1.107]
[1680528843609,3.2078,1808.3,1807.9,1.107]
[1680528845207,3.2078,1808.1,1807.9,1.107]
[1680528845707,3.2078,1808.1,1807.7,4.3088]
[1680528846100,1.103,1808.2,1807.8,1.0]
[1680528846701,1.103,1808.2,1807.7,4.3088]
[1680528847095,4.3108,1808.2,1807.7,4.3088]
[1680528849616,4.88912288,1808.2,1807.7,4.3088]
[1680528850215,3.78612288,1808.2,1807.9,1.101]
[1680528851217,3.2078,1808.2,1807.9,1.101]
[1680528851421,3.78612288,1808.2,1807.9,1.101]
[1680528851617,0.57832288,1808.1,1807.7,1.106]
[1680528853219,4.3148,1807.8,1807.6,0.85183101]
[1680528853421,4.89312288,1807.8,1807.3,4.3148]
[1680528853721,4.3148,1807.8,1807.3,4.3148]
[1680528853912,4.3148,1807.8,1807.3,5.3148]
[1680528854316,4.3148,1807.8,1807.3,4.3148]
[1680528854822,4.3148,1807.8,1807.4,0.6200931]
[1680528855016,4.3148,1807.8,1807.4,1.6200931]
[1680528855217,4.3148,1807.8,1807.4,0.6200931]
[1680528855422,4.3148,1807.8,1807.3,5.3148]
[1680528855615,4.89312288,1807.8,1807.3,5.3148]
[1680528855817,4.89312288,1807.8,1807.4,1.0]
[1680528856116,4.89312288,1807.8,1807.3,4.3148]
[1680528856321,1.107,1807.6,1807.3,3.2078]
[1680528858526,1.107,1807.6,1807.3,3.20012938]
[1680528860525,1.68532288,1807.6,1807.3,3.20012938]
[1680528861118,0.57832288,1807.6,1807.4,2.103]
[1680528861324,0.57832288,1807.6,1807.5,1.0]
[1680528861718,0.57832288,1807.7,1807.5,1.0]
[1680528861922,0.57832288,1807.7,1807.4,2.103]
[1680528862726,0.57832288,1807.6,1807.4,2.103]
[1680528862921,0.57832288,1807.6,1807.4,1.103]
[1680528863627,1.44703009,1807.6,1807.4,2.103]
[1680528864121,0.57832288,1807.5,1807.4,2.103]
[1680528864327,0.57832288,1807.5,1807.4,1.103]
[1680528866515,0.86870721,1807.5,1807.4,1.103]
[1680528869728,0.86870721,1807.5,1807.4,1.7232278]
[1680528869933,0.86870721,1807.5,1807.4,0.6202278]
[1680528870138,3.37182385,1807.5,1807.4,0.45049418]
[1680528870427,16.94273834,1807.5,1807.0,0.57119056]
[1680528870624,1.44944701,1807.1,1806.9,3.77899056]
[1680528870819,0.5797788,1807.0,1806.9,3.77899056]
[1680528871021,0.5797788,1807.0,1806.9,0.57119056]
[1680528871220,0.5797788,1807.0,1806.8,1.67219056]
[1680528871426,1.44944701,1807.0,1806.8,1.67219056]
[1680528872022,0.5797788,1807.0,1806.8,1.101]
[1680528872224,0.5797788,1807.0,1806.7,5.7484874]
[1680528872621,0.5797788,1807.0,1806.8,0.57119056]
[1680528872827,4.8915788,1807.0,1806.7,0.57119056]
[1680528873028,5.76124701,1807.0,1806.7,0.57119056]
[1680528873428,0.5797788,1806.9,1806.6,1.4336874]
[1680528874032,0.5797788,1806.9,1806.6,1.57119056]
[1680528876037,4.8915788,1807.0,1806.6,1.0]
[1680528876835,4.8915788,1807.0,1806.5,6.42482583]
[1680528877035,4.8915788,1807.0,1806.5,4.88499056]
[1680528877235,3.2078,1806.8,1806.5,1.67719056]
[1680528877631,3.2078,1806.8,1806.5,1.106]
[1680528877838,3.2078,1806.8,1806.6,0.19590446]
[1680528878945,3.7875788,1806.8,1806.6,0.19590446]
[1680528879144,3.2078,1806.8,1806.6,0.19590446]
[1680528879641,4.3108,1806.8,1806.6,0.19590446]
[1680528879844,4.3108,1806.8,1806.1,0.57119056]
[1680528879845,1.97666821,1806.7,1806.1,0.57119056]
[1680528880041,1.107,1806.2,1806.0,0.57119056]
[1680528880351,1.107,1806.2,1805.7,1.45234174]
[1680528880352,1.107,1806.2,1805.7,4.87999056]
[1680528880540,1.107,1806.2,1805.8,0.57119056]
[1680528880733,1.107,1806.2,1805.8,1.57119056]
[1680528880940,4.3148,1806.2,1805.8,1.0]
[1680528881140,4.3148,1806.2,1805.8,1.57119056]
[1680528881349,4.3148,1806.2,1805.8,1.0]
[1680528881735,4.3148,1806.2,1805.7,6.7424874]
[1680528882050,3.2078,1806.2,1805.8,2.106]
[1680528883536,3.2078,1806.2,1805.8,1.106]
[1680528883743,3.2078,1806.2,1805.8,2.106]
[1680528883946,3.2078,1806.2,1805.8,1.106]
[1680528884842,3.2078,1806.2,1805.8,2.106]
[1680528885042,3.2078,1806.2,1805.8,1.106]
[1680528887549,0.25920737,1806.1,1805.8,1.106]
[1680528887945,3.2078,1806.2,1805.8,1.106]
[1680528888251,3.2078,1806.2,1805.8,2.106]
[1680528888846,3.2078,1806.2,1805.8,1.106]
[1680528891152,3.2078,1806.4,1806.0,1.101]
[1680528899448,3.2078,1806.4,1806.2,1.107]
[1680528899656,0.25754626,1806.3,1806.2,1.107]
[1680528899959,3.2078,1806.4,1806.2,1.107]
[1680528900153,3.2078,1806.6,1806.2,1.107]
[1680528902457,3.2078,1806.4,1806.2,1.107]
[1680528903367,3.2078,1806.4,1806.0,1.107]
[1680528903656,3.2078,1806.2,1806.0,1.107]
[1680528905273,4.3148,1806.2,1805.7,1.107]
[1680528905464,3.2078,1805.9,1805.6,4.6974]
[1680528905758,3.2078,1805.9,1805.7,1.107]
[1680528905960,3.2078,1805.9,1805.8,1.106]
[1680528906463,3.2078,1806.2,1805.9,1.0]
[1680528911659,3.2078,1806.2,1806.0,1.107]
[1680528911859,4.3118,1806.5,1806.0,1.107]
[1680528912061,4.3118,1806.5,1806.1,2.101]
[1680528912062,3.2078,1806.5,1806.1,2.101]
[1680528912256,0.17938551,1806.4,1806.3,1.106]
[1680528912658,0.17938551,1806.4,1806.3,4.3138]
[1680528912861,0.55377952,1806.8,1806.3,5.4655822]
[1680528913068,3.2078,1806.9,1806.3,5.4655822]
[1680528913069,3.2078,1806.9,1806.7,1.103]
[1680528914170,0.57873542,1807.0,1806.7,1.103]
[1680528914362,3.78653542,1807.1,1806.7,1.103]
[1680528915760,4.78653542,1807.1,1806.7,1.103]
[1680528915958,1.57873542,1807.0,1806.7,1.103]
[1680528916168,0.57873542,1807.0,1806.7,1.103]
[1680528917066,1.44840363,1807.0,1806.7,1.103]
[1680528917364,1.68573542,1807.0,1806.5,4.3138]
[1680528917570,0.57873542,1806.9,1806.5,4.3138]
[1680528917771,1.57873542,1806.9,1806.5,4.3138]
[1680528917963,0.57873542,1806.9,1806.5,4.3138]
[1680528919659,1.103,1806.8,1806.5,3.2078]
[1680528919862,1.107,1806.6,1806.3,0.0457822]
[1680528920061,4.89353542,1806.6,1806.3,0.0457822]
[1680528920271,4.89353542,1806.6,1806.1,4.88599056]
[1680528920467,4.89353542,1806.6,1806.4,0.06688166]
[1680528920673,4.89353542,1806.6,1806.1,4.88599056]
[1680528921175,3.2078,1806.4,1806.1,4.88599056]
[1680528921771,0.13581332,1806.3,1806.1,4.88599056]
[1680528921971,2.68573542,1806.6,1806.2,0.57119056]
[1680528922270,4.65620363,1806.6,1806.2,2.101]
[1680528922465,0.57873542,1806.5,1806.2,1.101]
[1680528922771,4.65620363,1806.6,1806.2,1.101]
[1680528923074,3.78653542,1806.6,1806.2,2.67219056]
[1680528923270,0.57873542,1806.6,1806.3,4.2078]
[1680528923582,0.57873542,1806.6,1806.3,3.2078]
[1680528924067,1.44840363,1806.6,1806.3,3.2078]
[1680528925277,0.57873542,1806.6,1806.3,3.2078]
[1680528925877,1.44840363,1806.6,1806.3,3.2078]
[1680528926278,0.57873542,1806.6,1806.3,3.2078]
[1680528926781,0.57873542,1806.5,1806.3,3.2078]
[1680528927479,0.57873542,1806.5,1806.2,1.67219056]
[1680528927681,1.68173542,1806.5,1806.2,0.57119056]
[1680528929082,1.68173542,1806.5,1806.1,0.57119056]
[1680528929284,3.2078,1806.4,1806.1,0.57119056]
[1680528929478,3.2078,1806.2,1806.0,0.57119056]
[1680528929776,1.68173542,1806.3,1806.0,0.57119056]
[1680528930183,0.15765857,1806.2,1806.0,0.57119056]
[1680528930578,1.68173542,1806.3,1806.0,0.57119056]
[1680528931683,1.68173542,1806.3,1806.0,1.57119056]
[1680528931885,0.18314332,1806.2,1806.0,1.57119056]
[1680528932186,0.57873542,1806.3,1806.0,1.57119056]
[1680528932481,0.57873542,1806.3,1806.0,0.57119056]
[1680528932482,0.18313874,1806.2,1806.0,0.57119056]
[1680528932683,0.57873542,1806.3,1806.0,0.57119056]
[1680528933082,0.18313583,1806.2,1806.0,0.57119056]
[1680528933282,5.07667125,1806.2,1805.9,0.57119056]
[1680528933479,5.07667125,1806.2,1805.8,4.07029684]
[1680528933480,1.103,1806.0,1805.8,1.4336874]
[1680528933676,4.3108,1806.0,1805.7,1.4336874]
[1680528933875,4.88953542,1806.0,1805.7,0.57119056]
[1680528934080,0.38342286,1805.9,1805.7,0.57119056]
[1680528935977,0.38342286,1805.9,1805.8,1.106]
[1680528936176,0.57873542,1806.1,1805.8,11.42599056]
[1680528936396,1.44944701,1806.4,1806.0,5.17629684]
[1680528936397,1.44840363,1806.4,1806.0,5.17629684]
[1680528936591,0.57873542,1806.4,1806.1,1.68080747]
[1680528936785,0.57873542,1806.4,1806.2,1.0]
[1680528937789,0.57873542,1806.4,1806.1,2.68080747]
[1680528937992,0.57873542,1806.4,1806.2,1.0]
[1680528940691,0.57873542,1806.5,1806.2,4.2078]
[1680528940985,1.44840363,1806.5,1806.2,4.2078]
[1680528941485,0.57873542,1806.4,1806.1,2.68080747]
[1680528941685,0.57873542,1806.4,1806.1,1.68080747]
[1680528941991,3.2078,1806.3,1806.1,1.106]
[1680528942394,3.78653542,1806.3,1806.0,0.57480747]
[1680528942585,3.78653542,1806.3,1806.0,1.57480747]
[1680528942782,2.55140363,1806.4,1806.0,1.57480747]
[1680528942986,0.57873542,1806.4,1806.1,1.57480747]
[1680528943187,0.57873542,1806.4,1806.3,1.106]
[1680528943587,0.57873542,1806.4,1806.3,2.106]
[1680528944087,0.57873542,1806.4,1806.2,1.107]
[1680528944298,0.57873542,1806.4,1806.3,1.0]
[1680528944495,1.44840363,1806.5,1806.3,1.0]
[1680528945092,1.44840363,1806.5,1806.2,4.3148]
[1680528945280,1.44840363,1806.5,1806.3,1.0]
[1680528945686,1.44840363,1806.5,1806.2,4.3148]
[1680528945882,0.57873542,1806.5,1806.3,1.0]
[1680528946686,0.57873542,1806.5,1806.4,1.103]
[1680528950188,1.44840363,1806.5,1806.2,4.3138]
[1680528950395,4.65620363,1806.5,1806.2,4.3138]
[1680528950795,0.57873542,1806.4,1806.2,4.3138]
[1680528950994,0.57873542,1806.4,1806.2,1.106]
[1680528951995,0.57873542,1806.4,1806.1,2.68080747]
[1680528952296,0.57873542,1806.4,1806.1,3.54330431]
[1680528952498,0.57873542,1806.4,1806.1,2.68080747]
[1680528953992,0.57873542,1806.4,1806.1,1.68080747]
[1680528954388,3.78653542,1806.3,1806.1,0.57480747]
[1680528954799,1.68573542,1806.4,1806.1,0.57480747]
[1680528954995,2.55540363,1806.4,1806.1,0.57480747]
[1680528955194,1.68573542,1806.4,1806.1,0.57480747]
[1680528955396,2.55540363,1806.4,1806.1,0.57480747]
[1680528956299,0.57873542,1806.3,1806.1,1.43730431]
[1680528956497,1.68573542,1806.4,1806.2,0.57480747]
[1680528956796,0.57873542,1806.4,1806.2,2.68180747]
[1680528956990,0.57873542,1806.4,1806.2,5.88960747]
[1680528961303,1.44840363,1806.4,1806.2,5.88960747]
[1680528962304,1.44840363,1806.4,1806.2,4.88960747]
[1680528962498,1.44840363,1806.4,1806.2,5.75210431]
[1680528962897,0.57873542,1806.3,1806.2,4.88960747]
[1680528963295,0.57873542,1806.3,1806.2,2.54430431]
[1680528963500,0.57873542,1806.3,1806.2,2.54561897]
[1680528963801,0.86966821,1806.3,1806.2,1.68312213]
[1680528967815,3.2078,1806.3,1806.2,0.57612213]
[1680528968019,5.65318828,1806.3,1806.1,0.57612213]
[1680528968214,0.87055749,1806.2,1806.0,0.57612213]
[1680528968408,0.58032093,1806.2,1806.1,1.96949684]
[1680528968615,0.18283067,1806.3,1806.1,1.96949684]
[1680528968616,1.633633,1806.3,1806.1,1.96949684]
[1680528968809,1.45080233,1806.3,1806.2,1.68229435]
[1680528969012,0.58032093,1806.3,1806.2,4.89009435]
[1680528969210,0.58032093,1806.3,1806.2,6.17629684]
[1680528969913,0.58032093,1806.3,1806.2,6.26967001]
[1680528970506,1.45080233,1806.4,1806.3,1.0]
[1680528970713,0.8704814,1806.4,1806.3,1.57627381]
[1680528971617,0.58035052,1806.4,1806.3,1.57627381]
[1680528972117,0.58035052,1806.4,1806.3,2.68327381]
[1680528973514,0.58035052,1806.4,1806.3,3.54577065]
[1680528973918,0.58035052,1806.4,1806.3,2.96949684]
[1680528974422,0.8704814,1806.5,1806.3,4.07899099]
[1680528974423,0.58035052,1806.5,1806.3,4.07899099]
[1680528974621,0.58035052,1806.5,1806.4,6.17579099]
[1680528975323,1.45083192,1806.6,1806.4,6.17579099]
[1680528975527,1.45083192,1806.6,1806.5,2.68253935]
[1680528975726,0.58035052,1806.6,1806.5,2.68253935]
[1680528975925,0.58035052,1806.6,1806.5,3.54753034]
[1680528976226,0.58035052,1806.7,1806.5,8.78640931]
[1680528976528,1.45083192,1806.8,1806.6,6.17829978]
[1680528976712,0.58035052,1806.8,1806.7,1.68232616]
[1680528976914,0.8704814,1806.9,1806.8,1.0]
[1680528977119,0.8704814,1806.9,1806.8,5.3138]
[1680528977327,0.8704814,1807.0,1806.8,5.3138]
[1680528977517,0.8704814,1807.0,1806.9,1.103]
[1680528978119,0.8704814,1807.2,1806.9,1.67932616]
[1680528978318,1.69958733,1807.3,1807.1,9.8548]
[1680528978319,0.8704814,1807.3,1807.1,9.8548]
[1680528978520,0.8704814,1807.3,1807.2,1.107]
[1680528978729,0.8704814,1807.4,1807.2,2.58569433]
[1680528978924,0.8704814,1807.4,1807.3,4.3108]
[1680528979321,0.8704814,1807.4,1807.3,5.3108]
[1680528980221,1.41167769,1807.5,1807.3,5.3108]
[1680528980421,0.8704814,1807.6,1807.4,1.103]
[1680528980626,0.8704814,1807.6,1807.5,5.3138]
[1680528981030,0.8704814,1807.7,1807.5,5.3138]
[1680528981418,0.8704814,1807.6,1807.5,5.3138]
[1680528982222,0.8704814,1807.6,1807.5,2.106]
[1680528982525,0.8704814,1807.7,1807.5,5.3138]
[1680528982727,0.8704814,1807.7,1807.5,2.106]
[1680528983036,0.8704814,1807.7,1807.5,5.3138]
[1680528983334,1.42718748,1807.8,1807.5,5.3138]
[1680528984528,4.63498748,1807.8,1807.5,1.106]
[1680528985230,3.76450608,1807.8,1807.5,1.106]
[1680528985426,1.107,1807.7,1807.3,1.101]
[1680528985628,3.2078,1807.6,1807.3,1.101]
[1680528986736,1.107,1807.7,1807.3,1.101]
[1680528987029,1.107,1807.7,1807.3,4.3088]
[1680528987225,1.107,1807.7,1807.4,1.0]
[1680528987631,1.107,1807.7,1807.3,5.3088]
[1680528988434,1.107,1807.7,1807.4,1.0]
[1680528988828,1.107,1807.7,1807.3,5.3088]
[1680528989737,1.107,1807.7,1807.3,4.3088]
[1680528992232,1.66370608,1807.8,1807.5,3.2078]
[1680528992537,1.66370608,1807.8,1807.4,4.2078]
[1680528992833,1.66370608,1807.8,1807.4,1.0]
[1680528993539,4.87150608,1807.8,1807.4,1.0]
[1680528993830,4.87150608,1807.8,1807.5,0.54164636]
[1680528995728,0.55670608,1807.8,1807.5,3.2078]
[1680528995933,1.66284407,1808.0,1807.7,1.103]
[1680528996138,3.2078,1808.2,1807.7,1.103]
[1680528996334,4.3148,1808.2,1807.7,1.103]
[1680528996535,1.0,1808.1,1807.7,1.103]
[1680528996933,3.2078,1808.0,1807.7,1.103]
[1680528997128,4.3148,1808.0,1807.6,1.103]
[1680528997742,3.2078,1807.8,1807.6,1.103]
[1680529000742,4.86796604,1808.0,1807.6,1.103]
[1680529002640,0.55316604,1808.0,1807.8,1.106]
[1680529002846,1.62811058,1808.2,1807.9,1.101]
[1680529003048,3.2078,1808.4,1807.9,1.101]
[1680529003235,3.2078,1808.4,1808.0,3.2078]
[1680529005445,4.90366306,1808.4,1808.0,3.2078]
[1680529006141,1.0,1808.3,1808.0,3.2078]
[1680529006338,2.107,1808.3,1807.8,1.107]
[1680529006740,3.2078,1808.2,1807.8,1.107]
[1680529007140,3.2078,1808.4,1808.1,1.107]
[1680529007941,4.3108,1808.4,1807.9,4.3138]
[1680529008143,4.3108,1808.4,1807.9,1.106]
[1680529008850,4.3108,1808.4,1808.0,0.81614783]
[1680529014851,5.18597197,1808.6,1808.0,0.81614783]
[1680529014852,4.3108,1808.2,1808.0,0.81614783]
[1680529015056,4.3108,1808.2,1807.7,1.107]
[1680529015451,1.103,1808.2,1808.1,0.61393493]
[1680529015652,4.3108,1808.2,1807.7,1.107]
[1680529015857,3.2078,1808.0,1807.7,1.107]
[1680529016059,3.2078,1808.0,1807.8,0.61394213]
[1680529017759,4.3118,1808.0,1807.8,0.61394213]
[1680529018160,4.3118,1808.0,1807.6,1.103]
[1680529019557,4.86456208,1808.0,1807.6,1.103]
[1680529021264,5.73504348,1808.0,1807.6,1.103]
[1680529023270,0.8704814,1807.9,1807.6,1.103]
[1680529023771,0.8704814,1807.9,1807.7,0.61401575]
[1680529027068,0.8704814,1807.9,1807.8,1.107]
[1680529027467,0.8704814,1808.0,1807.8,1.107]
[1680529027868,0.8704814,1808.0,1807.8,4.3148]
[1680529028173,0.8704814,1808.0,1807.8,1.107]
[1680529028376,0.8704814,1808.0,1807.8,4.3148]
[1680529028871,0.8704814,1808.1,1807.8,4.3148]
[1680529029775,0.8704814,1808.0,1807.8,4.3148]
[1680529031369,0.8704814,1808.0,1807.8,1.107]
[1680529033982,0.8704814,1807.9,1807.8,1.107]
[1680529034577,0.8704814,1807.9,1807.7,0.61401575]
[1680529034877,4.0782814,1807.9,1807.6,1.101]
[1680529036280,0.8704814,1807.9,1807.6,1.101]
[1680529036482,0.8704814,1807.9,1807.6,4.3088]
[1680529037485,0.8704814,1807.8,1807.6,4.3088]
[1680529038784,0.83239145,1807.8,1807.7,0.61684135]
[1680529042379,1.15955761,1808.0,1807.7,1.72384135]
[1680529042587,1.15955761,1808.2,1807.9,1.103]
[1680529042782,1.15955761,1808.2,1808.0,4.3138]
[1680529043082,1.15955761,1808.3,1808.0,5.3138]
[1680529043483,1.15955761,1808.2,1808.0,2.106]
[1680529043675,1.15955761,1808.3,1808.1,3.2078]
[1680529043881,1.15955761,1808.3,1808.0,2.106]
[1680529044086,1.15955761,1808.3,1808.0,1.106]
[1680529045283,1.15955761,1808.2,1808.0,1.106]
[1680529046384,1.15955761,1808.2,1808.1,0.76348374]
[1680529047683,1.15955761,1808.2,1808.1,1.86648374]
[1680529047984,1.15955761,1808.3,1808.1,5.07428374]
[1680529048179,1.15955761,1808.3,1808.2,1.106]
[1680529048384,1.15955761,1808.4,1808.2,1.106]
[1680529048584,1.15955761,1808.4,1808.3,1.106]
[1680529048786,1.15955761,1808.4,1808.3,2.106]
[1680529048985,1.15955761,1808.4,1808.3,1.106]
[1680529053794,1.15955761,1808.4,1808.3,1.89003012]
[1680529056598,1.15955761,1808.5,1808.3,1.89003012]
[1680529056796,1.15955761,1808.5,1808.4,2.106]
[1680529057096,1.7049959,1808.6,1808.4,2.106]
[1680529057794,1.7049959,1808.6,1808.4,1.106]
[1680529058298,1.7049959,1808.6,1808.3,1.88703012]
[1680529058500,1.15955761,1808.5,1808.3,1.88703012]
[1680529058698,1.0,1808.4,1808.3,1.88703012]
[1680529058901,4.36735761,1808.5,1808.3,1.88703012]
[1680529059700,5.36735761,1808.5,1808.3,1.88703012]
[1680529060099,4.36735761,1808.5,1808.3,1.88703012]
[1680529061098,5.36735761,1808.5,1808.3,1.88703012]
[1680529062002,4.36735761,1808.5,1808.3,0.78403012]
[1680529063101,4.36735761,1808.5,1808.3,1.88503012]
[1680529063305,1.15955761,1808.5,1808.3,1.88503012]
[1680529066396,4.9127959,1808.6,1808.3,1.88503012]
[1680529066608,1.15955761,1808.5,1808.3,1.88503012]
[1680529066902,2.7049959,1808.6,1808.3,1.88503012]
[1680529067106,2.15955761,1808.6,1808.3,1.88503012]
[1680529067601,1.15955761,1808.6,1808.3,1.88503012]
[1680529068905,1.15955761,1808.6,1808.5,2.213]
[1680529069207,1.15955761,1808.6,1808.5,1.107]
[1680529069401,1.15955761,1808.6,1808.5,1.96442288]
[1680529070802,3.33743395,1808.7,1808.5,1.96442288]
[1680529071102,1.15955761,1808.7,1808.5,1.96442288]
[1680529071507,1.15955761,1808.6,1808.5,1.96442288]
[1680529072805,1.15955761,1808.7,1808.5,1.96442288]
[1680529073006,1.15955761,1808.6,1808.5,1.96442288]
[1680529077506,1.15955761,1808.7,1808.5,1.96442288]
[1680529077707,2.15955761,1808.7,1808.5,1.96442288]
[1680529077908,1.15955761,1808.7,1808.5,1.96442288]
[1680529079010,1.15955761,1808.6,1808.5,1.96442288]
[1680529079199,1.15955761,1808.7,1808.5,1.96442288]
[1680529079603,1.15955761,1808.6,1808.5,1.96442288]
[1680529085716,1.44944701,1808.7,1808.5,1.96442288]
[1680529087919,14.72046568,1808.6,1808.5,1.96442288]
[1680529089418,13.27101867,1808.6,1808.5,1.96442288]
[1680529089613,5.6571904,1808.6,1808.5,1.96442288]
[1680529089811,16.47881867,1808.6,1808.5,1.96442288]
[1680529091821,17.92844779,1808.6,1808.5,1.96442288]
[1680529092022,16.47881867,1808.6,1808.5,1.96442288]
[1680529092222,17.92844663,1808.6,1808.5,1.96442288]
[1680529092418,19.03544663,1808.6,1808.5,0.67630131]
[1680529092620,17.58581867,1808.6,1808.5,0.65899852]
[1680529092822,17.58581867,1808.6,1808.2,0.57632616]
[1680529093118,1.16005889,1808.4,1808.3,0.65900366]
[1680529093318,1.16005889,1808.4,1808.3,1.76500366]
[1680529097825,1.16005889,1808.4,1808.3,0.65900366]
[1680529098129,2.45007361,1808.5,1808.3,0.65900366]
[1680529098520,4.65787361,1808.4,1808.3,0.65900366]
[1680529100632,1.16030899,1808.4,1808.3,0.65900366]
[1680529101630,5.76087361,1808.4,1808.3,0.65900366]
[1680529101835,1.0,1808.3,1808.0,1.44035]
[1680529102034,2.26741366,1808.2,1808.1,0.57585022]
[1680529105430,1.107,1808.2,1808.1,0.57585022]
[1680529105933,1.107,1808.2,1808.1,3.78365022]
[1680529105934,1.16041366,1808.2,1808.1,3.78365022]
[1680529107629,1.16041366,1808.2,1808.1,0.57585022]
[1680529108238,1.16041366,1808.2,1808.0,2.54735]
[1680529108435,0.87002445,1808.1,1808.0,2.54735]
[1680529108733,0.87002445,1808.1,1808.0,1.97149978]
[1680529109327,0.87002445,1808.1,1808.0,2.94869159]
[1680529111433,0.87002445,1808.1,1808.0,2.08419181]
[1680529112139,0.87002445,1808.1,1808.0,0.97719181]
[1680529112836,0.87002445,1808.1,1808.0,1.84169159]
[1680529113136,0.87002445,1808.1,1807.8,1.13940931]
[1680529113442,4.36821366,1808.0,1807.9,0.11726453]
[1680529113643,4.36821366,1808.0,1807.6,1.13940931]
[1680529113644,4.39937573,1808.0,1807.7,0.57580213]
[1680529113845,5.18061222,1807.8,1807.7,0.57580213]
[1680529114234,5.26364145,1807.8,1807.7,0.57580213]
[1680529114433,5.26364145,1807.8,1807.6,1.43950533]
[1680529114738,5.26364145,1807.8,1807.7,0.57580213]
[1680529114935,6.26364145,1807.8,1807.7,0.57580213]
[1680529115238,5.97329355,1807.8,1807.7,0.57580213]
[1680529115542,6.84310577,1807.8,1807.6,0.57580213]